[Event "*** Titled Tuesday Blitz"]
[Site "Chess.com"]
[Date "2019.09.03"]
[Round "4"]
[White "r31415"]
[Black "TheBigBoss04"]
[Result "0-1"]
[WhiteElo "2360"]
[BlackElo "2540"]
[TimeControl "180+2"]
[EndTime "15:55:05 PDT"]
[Termination "TheBigBoss04 won by resignation"]

1. e4 {[%clk 0:03:01.9]} 1... c5 {[%clk 0:02:58.8]} 2. Nf3 {[%clk 0:03:03]} 2...
d6 {[%clk 0:03:00]} 3. d4 {[%clk 0:03:04.4]} 3... cxd4 {[%clk 0:03:01.6]} 4.
Nxd4 {[%clk 0:03:06.3]} 4... Nf6 {[%clk 0:03:02.7]} 5. Nc3 {[%clk 0:03:07.8]}
5... a6 {[%clk 0:03:04.3]} 6. h3 {[%clk 0:03:08.6]} 6... e6 {[%clk 0:03:04.7]}
7. g4 {[%clk 0:03:08.7]} 7... h6 {[%clk 0:03:06.3]} 8. Bg2 {[%clk 0:03:10.1]}
8... g5 {[%clk 0:03:07.1]} 9. b3 {[%clk 0:03:08.6]} 9... Nfd7 {[%clk 0:02:59.5]}
10. Bb2 {[%clk 0:03:08.6]} 10... Ne5 {[%clk 0:03:01]} 11. Nce2 {[%clk
0:02:55.1]} 11... Nbd7 {[%clk 0:03:01.3]} 12. Qd2 {[%clk 0:02:46.2]} 12... b5
{[%clk 0:02:59.9]} 13. O-O-O {[%clk 0:02:36.1]} 13... Bb7 {[%clk 0:03:00.7]} 14.
Kb1 {[%clk 0:02:36.4]} 14... Qc7 {[%clk 0:02:56.4]} 15. f4 {[%clk 0:02:34.1]}
15... gxf4 {[%clk 0:02:57.5]} 16. Nxf4 {[%clk 0:02:36]} 16... Nc5 {[%clk
0:02:57]} 17. Qe3 {[%clk 0:02:31]} 17... O-O-O {[%clk 0:02:57.1]} 18. Nh5 {[%clk
0:02:19.8]} 18... Be7 {[%clk 0:02:56.6]} 19. Nf3 {[%clk 0:02:12.1]} 19... Kb8
{[%clk 0:02:43.5]} 20. Nxe5 {[%clk 0:02:00.4]} 20... dxe5 {[%clk 0:02:43.6]} 21.
Qg3 {[%clk 0:01:54.9]} 21... f6 {[%clk 0:02:22.6]} 22. Rdf1 {[%clk 0:01:48.7]}
22... Nxe4 {[%clk 0:02:21.9]} 23. Bxe4 {[%clk 0:01:38]} 23... Bxe4 {[%clk
0:02:21.9]} 24. Rh2 {[%clk 0:01:39.9]} 24... Rhf8 {[%clk 0:02:04.5]} 25. Rhf2
{[%clk 0:01:32.4]} 25... Rc8 {[%clk 0:02:00.7]} 26. Nxf6 {[%clk 0:01:24]} 26...
Bxf6 {[%clk 0:01:52]} 27. Rxf6 {[%clk 0:01:24.1]} 27... Qxc2+ {[%clk 0:01:53]}
28. Ka1 {[%clk 0:01:25.3]} 28... Rfd8 {[%clk 0:01:43.9]} 29. Qxe5+ {[%clk
0:00:54.1]} 29... Ka8 {[%clk 0:01:41.5]} 30. Rc1 {[%clk 0:00:42]} 30... Rd1
{[%clk 0:01:16.8]} 31. Rf1 {[%clk 0:00:42.6]} 31... Rxf1 {[%clk 0:00:25.8]} 32.
Rxf1 {[%clk 0:00:42.3]} 32... Rd8 {[%clk 0:00:27.5]} 33. Qc3 {[%clk 0:00:09.6]}
33... Qxc3 {[%clk 0:00:21.3]} 34. Bxc3 {[%clk 0:00:10.1]} 34... Rd3 {[%clk
0:00:23.2]} 35. Re1 {[%clk 0:00:05.5]} 35... Bd5 {[%clk 0:00:24.3]} 36. Bg7
{[%clk 0:00:04.5]} 36... Rxh3 {[%clk 0:00:25.8]} 37. Rf1 {[%clk 0:00:03.7]}
37... Kb7 {[%clk 0:00:22.6]} 38. Rf6 {[%clk 0:00:04.3]} 38... h5 {[%clk
0:00:23.8]} 39. g5 {[%clk 0:00:04]} 39... Rg3 {[%clk 0:00:23.9]} 40. Bh6 {[%clk
0:00:03.7]} 40... h4 {[%clk 0:00:25.2]} 41. g6 {[%clk 0:00:04.1]} 41... h3
{[%clk 0:00:26.7]} 42. Rf2 {[%clk 0:00:03.8]} 42... Rg1+ {[%clk 0:00:26.7]} 43.
Kb2 {[%clk 0:00:04.1]} 43... Rxg6 {[%clk 0:00:27.5]} 44. Bf4 {[%clk 0:00:03.1]}
44... Bg2 {[%clk 0:00:23.6]} 45. Bh2 {[%clk 0:00:03]} 45... Kc6 {[%clk
0:00:23.1]} 46. Rf7 {[%clk 0:00:04.5]} 46... Kd5 {[%clk 0:00:24.1]} 47. Rd7+
{[%clk 0:00:05.6]} 47... Ke4 {[%clk 0:00:24.6]} 48. Kc3 {[%clk 0:00:05.5]} 48...
Rf6 {[%clk 0:00:24.2]} 49. Rd4+ {[%clk 0:00:05.1]} 49... Kf3 {[%clk 0:00:25.5]}
50. Rd3+ {[%clk 0:00:05.6]} 50... Kg4 {[%clk 0:00:23.9]} 51. Rg3+ {[%clk
0:00:06.5]} 51... Kh4 {[%clk 0:00:24.9]} 52. Kd4 {[%clk 0:00:04.3]} 52... Rf2
{[%clk 0:00:23.7]} 53. Rg8 {[%clk 0:00:04.1]} 53... Rxa2 {[%clk 0:00:23.3]} 54.
Ke5 {[%clk 0:00:03.8]} 54... Bd5 {[%clk 0:00:21.4]} 55. Bg3+ {[%clk 0:00:04.3]}
55... Kh5 {[%clk 0:00:22.5]} 56. Kf4 {[%clk 0:00:03.2]} 56... Rg2 {[%clk
0:00:18.4]} 57. Rh8+ {[%clk 0:00:03]} 57... Kg6 {[%clk 0:00:19.6]} 58. Rxh3
{[%clk 0:00:03.7]} 58... a5 {[%clk 0:00:18.6]} 59. Ke3 {[%clk 0:00:03.2]} 59...
Bxb3 {[%clk 0:00:19.3]} 60. Bc7 {[%clk 0:00:03.8]} 60... a4 {[%clk 0:00:18.8]}
61. Kd4 {[%clk 0:00:03.8]} 61... Rc2 {[%clk 0:00:19.3]} 62. Bd6 {[%clk
0:00:04.3]} 62... Bd5 {[%clk 0:00:19.9]} 63. Ke5 {[%clk 0:00:04.5]} 63... Re2+
{[%clk 0:00:19.2]} 64. Kd4 {[%clk 0:00:04.3]} 64... Re4+ {[%clk 0:00:19.4]} 65.
Kd3 {[%clk 0:00:03]} 65... b4 {[%clk 0:00:20.5]} 66. Rg3+ {[%clk 0:00:03.4]}
66... Kf5 {[%clk 0:00:21.4]} 67. Rf3+ {[%clk 0:00:04.4]} 67... Kg6 {[%clk
0:00:21.9]} 68. Rg3+ {[%clk 0:00:04.9]} 68... Kf7 {[%clk 0:00:23.5]} 69. Rf3+
{[%clk 0:00:05.6]} 69... Ke8 {[%clk 0:00:25.1]} 70. Bc5 {[%clk 0:00:03.5]} 70...
Rc4 {[%clk 0:00:23.1]} 71. Bd6 {[%clk 0:00:03.3]} 71... Rc3+ {[%clk 0:00:23.1]}
72. Kd2 {[%clk 0:00:03.2]} 72... Rxf3 {[%clk 0:00:23]} 73. Bxb4 {[%clk
0:00:05.1]} 73... a3 {[%clk 0:00:23.5]} 0-1

[Event "*** Titled Tuesday Blitz"]
[Site "Chess.com"]
[Date "2019.09.03"]
[Round "4"]
[White "champ2005"]
[Black "nocnypako"]
[Result "1/2-1/2"]
[WhiteElo "2849"]
[BlackElo "2596"]
[TimeControl "180+2"]
[EndTime "15:55:39 PDT"]
[Termination "Game drawn by agreement"]

1. e4 {[%clk 0:03:01.6]} 1... e6 {[%clk 0:02:54.6]} 2. d4 {[%clk 0:03:00.7]}
2... d5 {[%clk 0:02:51.8]} 3. Nc3 {[%clk 0:03:02.1]} 3... Bb4 {[%clk 0:02:50.5]}
4. exd5 {[%clk 0:03:03.2]} 4... exd5 {[%clk 0:02:50.3]} 5. Bd3 {[%clk
0:03:03.9]} 5... Nf6 {[%clk 0:02:49.5]} 6. Ne2 {[%clk 0:02:59]} 6... O-O {[%clk
0:02:49.3]} 7. O-O {[%clk 0:03:00.2]} 7... Bg4 {[%clk 0:02:46.7]} 8. f3 {[%clk
0:02:58.8]} 8... Bh5 {[%clk 0:02:47.5]} 9. Bg5 {[%clk 0:02:57.2]} 9... c6 {[%clk
0:02:42.1]} 10. Ng3 {[%clk 0:02:45.2]} 10... Bg6 {[%clk 0:02:39.3]} 11. Nce2
{[%clk 0:02:46.4]} 11... Nbd7 {[%clk 0:02:33.1]} 12. c3 {[%clk 0:02:46.2]} 12...
Bd6 {[%clk 0:02:18]} 13. Bf4 {[%clk 0:02:45.7]} 13... Qc7 {[%clk 0:02:15.9]} 14.
Bxd6 {[%clk 0:02:44.1]} 14... Qxd6 {[%clk 0:02:17.8]} 15. Qd2 {[%clk 0:02:44.6]}
15... Rfe8 {[%clk 0:02:04.1]} 16. Nf4 {[%clk 0:02:44.4]} 16... Nf8 {[%clk
0:01:56.1]} 17. Rfe1 {[%clk 0:02:23.8]} 17... Qd7 {[%clk 0:01:52.8]} 18. Re5
{[%clk 0:02:21.8]} 18... Qd6 {[%clk 0:01:40.1]} 19. Rae1 {[%clk 0:02:16.5]}
19... N8d7 {[%clk 0:01:40.8]} 20. Rxe8+ {[%clk 0:01:53.4]} 20... Rxe8 {[%clk
0:01:42.7]} 21. Rxe8+ {[%clk 0:01:54.5]} 21... Nxe8 {[%clk 0:01:41.8]} 22. Bf5
{[%clk 0:01:53.1]} 22... Kf8 {[%clk 0:01:29]} 23. Nd3 {[%clk 0:01:50.2]} 23...
Nef6 {[%clk 0:01:17.1]} 24. Qe3 {[%clk 0:01:36.2]} 24... b6 {[%clk 0:01:00.8]}
25. Ne5 {[%clk 0:01:18.1]} 25... Bxf5 {[%clk 0:00:55.3]} 26. Nxf5 {[%clk
0:01:15.8]} 26... Qe6 {[%clk 0:00:56.8]} 27. g4 {[%clk 0:01:01]} 27... Ne8
{[%clk 0:00:41.3]} 28. Nd3 {[%clk 0:00:48.3]} 28... Qxe3+ {[%clk 0:00:40.7]} 29.
Nxe3 {[%clk 0:00:50.2]} 29... Nd6 {[%clk 0:00:41.3]} 30. Nb4 {[%clk 0:00:51.2]}
30... Nb8 {[%clk 0:00:38.9]} 31. Kf2 {[%clk 0:00:48.5]} 31... a5 {[%clk
0:00:39.7]} 32. Nd3 {[%clk 0:00:49.8]} 32... f6 {[%clk 0:00:41]} 33. h4 {[%clk
0:00:50.1]} 33... Kf7 {[%clk 0:00:41.6]} 34. h5 {[%clk 0:00:50.9]} 34... Nd7
{[%clk 0:00:39.6]} 35. Nf4 {[%clk 0:00:49.4]} 35... Nf8 {[%clk 0:00:35.3]} 36.
Ke2 {[%clk 0:00:37]} 36... Ne6 {[%clk 0:00:36]} 37. Nd3 {[%clk 0:00:38.5]} 37...
g6 {[%clk 0:00:35]} 38. hxg6+ {[%clk 0:00:38.2]} 38... hxg6 {[%clk 0:00:36.9]}
39. Ng2 {[%clk 0:00:33.8]} 39... g5 {[%clk 0:00:34]} 40. Ne3 {[%clk 0:00:34.4]}
40... Kg6 {[%clk 0:00:32.3]} 41. Kd2 {[%clk 0:00:33.4]} 41... Kf7 {[%clk
0:00:22.4]} 42. b3 {[%clk 0:00:34.8]} 42... Ke7 {[%clk 0:00:21.8]} 43. a4 {[%clk
0:00:35.3]} 43... Kf7 {[%clk 0:00:21.3]} 44. Nf1 {[%clk 0:00:29]} 44... Kg6
{[%clk 0:00:18.9]} 45. Ng3 {[%clk 0:00:29]} 45... Kf7 {[%clk 0:00:14.1]} 46. Nf1
{[%clk 0:00:25.9]} 46... Kg6 {[%clk 0:00:14.8]} 47. Ne3 {[%clk 0:00:27.2]} 47...
Kf7 {[%clk 0:00:15.7]} 48. Ne1 {[%clk 0:00:21.3]} 48... Nf4 {[%clk 0:00:14.6]}
49. b4 {[%clk 0:00:20.8]} 49... Ke6 {[%clk 0:00:09.8]} 50. N1c2 {[%clk
0:00:19.5]} 50... Nb7 {[%clk 0:00:09.2]} 51. Ne1 {[%clk 0:00:18.2]} 51... c5
{[%clk 0:00:09.6]} 52. b5 {[%clk 0:00:17.3]} 52... c4 {[%clk 0:00:09.4]} 53.
N3g2 {[%clk 0:00:16.4]} 53... Nxg2 {[%clk 0:00:08.8]} 54. Nxg2 {[%clk
0:00:18.3]} 54... Nd6 {[%clk 0:00:09.3]} 55. Ne3 {[%clk 0:00:19.6]} 55... f5
{[%clk 0:00:09.8]} 56. gxf5+ {[%clk 0:00:20.5]} 56... Nxf5 {[%clk 0:00:11.7]}
57. Ng4 {[%clk 0:00:21.7]} 57... Nd6 {[%clk 0:00:08.4]} 58. Ke3 {[%clk
0:00:21.1]} 58... Nf5+ {[%clk 0:00:09.1]} 59. Kf2 {[%clk 0:00:21.7]} 59... Nd6
{[%clk 0:00:09.5]} 60. Ne5 {[%clk 0:00:22.9]} 60... Nf7 {[%clk 0:00:10.4]} 61.
Ng4 {[%clk 0:00:14.8]} 61... Kf5 {[%clk 0:00:10.1]} 62. Ne3+ {[%clk 0:00:15.2]}
62... Ke6 {[%clk 0:00:10.6]} 63. Kg3 {[%clk 0:00:16.7]} 63... Nd8 {[%clk
0:00:09]} 64. Kg4 {[%clk 0:00:16.6]} 64... Nf7 {[%clk 0:00:10.6]} 65. f4 {[%clk
0:00:17.8]} 65... gxf4 {[%clk 0:00:10.7]} 66. Kxf4 {[%clk 0:00:19.7]} 66... Nd6
{[%clk 0:00:10.9]} 67. Kf3 {[%clk 0:00:11.3]} 67... Nf5 {[%clk 0:00:11.8]} 68.
Nc2 {[%clk 0:00:11.4]} 68... Nd6 {[%clk 0:00:12]} 69. Ne3 {[%clk 0:00:12.5]}
69... Nf5 {[%clk 0:00:12.7]} 70. Ng4 {[%clk 0:00:13.1]} 70... Nd6 {[%clk
0:00:09.5]} 71. Ne5 {[%clk 0:00:14.2]} 71... Nf5 {[%clk 0:00:09.2]} 72. Kf4
{[%clk 0:00:14.9]} 72... Nd6 {[%clk 0:00:09.7]} 73. Ke3 {[%clk 0:00:15.9]} 73...
Nf5+ {[%clk 0:00:10.6]} 74. Kd2 {[%clk 0:00:17.4]} 74... Nd6 {[%clk 0:00:11.4]}
75. Kc2 {[%clk 0:00:18.7]} 75... Ne4 {[%clk 0:00:12.3]} 76. Nf3 {[%clk
0:00:19.7]} 76... Kd6 {[%clk 0:00:12.3]} 77. Ne5 {[%clk 0:00:20.7]} 77... Ke6
{[%clk 0:00:13]} 78. Ng4 {[%clk 0:00:20.1]} 78... Kd6 {[%clk 0:00:13.8]} 79. Ne3
{[%clk 0:00:21.4]} 79... Ke6 {[%clk 0:00:14.6]} 80. Ng4 {[%clk 0:00:22.2]} 80...
Kd6 {[%clk 0:00:15.2]} 81. Ne3 {[%clk 0:00:22.5]} 1/2-1/2

[Event "*** Titled Tuesday Blitz"]
[Site "Chess.com"]
[Date "2019.09.03"]
[Round "4"]
[White "DrMelekess"]
[Black "daro94"]
[Result "0-1"]
[WhiteElo "2695"]
[BlackElo "2880"]
[TimeControl "180+2"]
[EndTime "15:56:47 PDT"]
[Termination "daro94 won by resignation"]

1. d4 {[%clk 0:03:01.3]} 1... Nf6 {[%clk 0:03:00.4]} 2. Nf3 {[%clk 0:03:02.5]}
2... d5 {[%clk 0:02:59.7]} 3. e3 {[%clk 0:03:02.6]} 3... e6 {[%clk 0:02:56.6]}
4. c4 {[%clk 0:03:03.5]} 4... b6 {[%clk 0:02:57.4]} 5. Nc3 {[%clk 0:03:03.7]}
5... Bb7 {[%clk 0:02:58.1]} 6. Be2 {[%clk 0:03:03.6]} 6... Nbd7 {[%clk
0:02:57.1]} 7. O-O {[%clk 0:03:04.1]} 7... Bd6 {[%clk 0:02:57]} 8. b3 {[%clk
0:02:59.1]} 8... O-O {[%clk 0:02:54.2]} 9. Bb2 {[%clk 0:02:59.2]} 9... a6 {[%clk
0:02:54.6]} 10. Rc1 {[%clk 0:02:51.7]} 10... Qe7 {[%clk 0:02:49.6]} 11. h3
{[%clk 0:02:51.4]} 11... Rfe8 {[%clk 0:02:50.7]} 12. Qc2 {[%clk 0:02:50.3]}
12... Rac8 {[%clk 0:02:32.2]} 13. Rfe1 {[%clk 0:02:44.2]} 13... c5 {[%clk
0:02:19.3]} 14. dxc5 {[%clk 0:02:24.2]} 14... bxc5 {[%clk 0:02:18]} 15. Rcd1
{[%clk 0:02:18.9]} 15... Red8 {[%clk 0:01:57.1]} 16. Na4 {[%clk 0:02:11.4]}
16... Ne4 {[%clk 0:01:46.6]} 17. Bd3 {[%clk 0:02:01.3]} 17... f5 {[%clk
0:01:40.9]} 18. Be2 {[%clk 0:01:41.4]} 18... Bb8 {[%clk 0:01:09.8]} 19. Rd3
{[%clk 0:01:21.4]} 19... Ndf6 {[%clk 0:01:04.2]} 20. Red1 {[%clk 0:01:14.2]}
20... Bc6 {[%clk 0:00:18]} 21. Nc3 {[%clk 0:01:01.1]} 21... Qc7 {[%clk 0:00:12]}
22. Nb1 {[%clk 0:00:36.3]} 22... Qb7 {[%clk 0:00:12.2]} 23. Be5 {[%clk
0:00:33.6]} 23... Bxe5 {[%clk 0:00:07.7]} 24. Nxe5 {[%clk 0:00:34.7]} 24... Be8
{[%clk 0:00:09.3]} 25. Nc3 {[%clk 0:00:33.8]} 25... Qb8 {[%clk 0:00:10]} 26. Nf3
{[%clk 0:00:33.6]} 26... Bf7 {[%clk 0:00:09.1]} 27. Na4 {[%clk 0:00:24.9]} 27...
a5 {[%clk 0:00:08.6]} 28. a3 {[%clk 0:00:16]} 28... h6 {[%clk 0:00:10]} 29. Qc1
{[%clk 0:00:11.7]} 29... g5 {[%clk 0:00:11.1]} 30. Nd2 {[%clk 0:00:09.6]} 30...
h5 {[%clk 0:00:10.4]} 31. Nf1 {[%clk 0:00:07.4]} 31... g4 {[%clk 0:00:11.3]} 32.
h4 {[%clk 0:00:08.6]} 32... Bg6 {[%clk 0:00:09.7]} 33. Nc3 {[%clk 0:00:05.5]}
33... Bf7 {[%clk 0:00:10.8]} 34. Nb5 {[%clk 0:00:06]} 34... g3 {[%clk
0:00:11.1]} 35. Nxg3 {[%clk 0:00:04.7]} 35... Nxg3 {[%clk 0:00:12.3]} 36. fxg3
{[%clk 0:00:06.6]} 36... Ne4 {[%clk 0:00:11.7]} 37. Bf3 {[%clk 0:00:03.8]} 37...
Qxg3 {[%clk 0:00:12.3]} 38. Bxe4 {[%clk 0:00:03.4]} 38... fxe4 {[%clk
0:00:14.2]} 39. Rc3 {[%clk 0:00:04.7]} 39... Qxh4 {[%clk 0:00:13.1]} 40. Rf1
{[%clk 0:00:04.6]} 40... Qg5 {[%clk 0:00:12.8]} 41. Qe1 {[%clk 0:00:05.3]} 41...
Be8 {[%clk 0:00:10.5]} 42. Qf2 {[%clk 0:00:03.2]} 42... Bxb5 {[%clk 0:00:05.9]}
43. Qf7+ {[%clk 0:00:02.3]} 43... Kh8 {[%clk 0:00:07.3]} 44. cxb5 {[%clk
0:00:03.5]} 44... Rg8 {[%clk 0:00:07]} 45. Rf2 {[%clk 0:00:02.4]} 45... Rcf8
{[%clk 0:00:05.5]} 46. Qxf8 {[%clk 0:00:02.7]} 46... Rxf8 {[%clk 0:00:07.4]} 47.
Rxf8+ {[%clk 0:00:03.6]} 47... Kg7 {[%clk 0:00:08.9]} 48. Rf2 {[%clk 0:00:03.3]}
48... d4 {[%clk 0:00:09.8]} 49. exd4 {[%clk 0:00:05.2]} 49... cxd4 {[%clk
0:00:11.3]} 50. Rc7+ {[%clk 0:00:06.8]} 50... Kg6 {[%clk 0:00:11.5]} 51. Rcf7
{[%clk 0:00:05.6]} 51... d3 {[%clk 0:00:09.5]} 52. R2f6+ {[%clk 0:00:02.6]}
52... Qxf6 {[%clk 0:00:10.7]} 53. Rxf6+ {[%clk 0:00:04.5]} 53... Kxf6 {[%clk
0:00:12.6]} 54. Kf2 {[%clk 0:00:06]} 54... Ke5 {[%clk 0:00:13.6]} 55. Ke3 {[%clk
0:00:06.3]} 55... h4 {[%clk 0:00:12.5]} 56. Kd2 {[%clk 0:00:05.4]} 56... Kd5
{[%clk 0:00:12.5]} 57. Ke3 {[%clk 0:00:05.4]} 57... Kc5 {[%clk 0:00:14]} 58. a4
{[%clk 0:00:06.7]} 58... Kb6 {[%clk 0:00:15.2]} 59. Kd2 {[%clk 0:00:07.4]} 59...
Kc7 {[%clk 0:00:16.7]} 60. Ke3 {[%clk 0:00:07.7]} 60... Kb6 {[%clk 0:00:18.1]}
61. Kd2 {[%clk 0:00:08.7]} 61... Kc5 {[%clk 0:00:19.6]} 62. Kc3 {[%clk
0:00:08.9]} 62... Kd5 {[%clk 0:00:21.1]} 63. Kd2 {[%clk 0:00:09.6]} 63... e5
{[%clk 0:00:16.9]} 64. Kc3 {[%clk 0:00:08.1]} 64... Kc5 {[%clk 0:00:18]} 65. Kd2
{[%clk 0:00:09.6]} 65... Kd6 {[%clk 0:00:19.5]} 66. Kc3 {[%clk 0:00:09.4]} 66...
Ke6 {[%clk 0:00:20.7]} 67. Kd2 {[%clk 0:00:09.9]} 67... Kd6 {[%clk 0:00:22.2]}
68. Kc3 {[%clk 0:00:11]} 68... Kd5 {[%clk 0:00:23.8]} 69. Kd2 {[%clk 0:00:11.8]}
69... Kc5 {[%clk 0:00:24.8]} 70. Kc3 {[%clk 0:00:12.5]} 70... Kb6 {[%clk
0:00:26.2]} 71. Kd2 {[%clk 0:00:13.5]} 71... Kc7 {[%clk 0:00:27.8]} 72. Kc3
{[%clk 0:00:13.9]} 72... Kd6 {[%clk 0:00:28.8]} 73. Kd2 {[%clk 0:00:13.6]} 73...
Kc5 {[%clk 0:00:29.6]} 74. Kc3 {[%clk 0:00:14.4]} 74... Kd5 {[%clk 0:00:31.1]}
75. Kd2 {[%clk 0:00:15.2]} 75... Kd4 {[%clk 0:00:19.6]} 76. b6 {[%clk
0:00:15.6]} 76... e3+ {[%clk 0:00:21.1]} 77. Ke1 {[%clk 0:00:12.7]} 77... Kc3
{[%clk 0:00:11.3]} 78. b7 {[%clk 0:00:11.5]} 78... d2+ {[%clk 0:00:10.9]} 79.
Ke2 {[%clk 0:00:12.4]} 79... Kc2 {[%clk 0:00:12.1]} 80. b8=Q {[%clk 0:00:14.2]}
80... d1=Q+ {[%clk 0:00:13.5]} 81. Kxe3 {[%clk 0:00:15.7]} 81... Qe1+ {[%clk
0:00:10.9]} 82. Kf3 {[%clk 0:00:14.7]} 82... Qg3+ {[%clk 0:00:12]} 83. Ke4
{[%clk 0:00:13.8]} 83... Qxg2+ {[%clk 0:00:13.4]} 84. Kf5 {[%clk 0:00:14]} 84...
Qf3+ {[%clk 0:00:14.6]} 85. Ke6 {[%clk 0:00:14.4]} 85... Qxb3+ {[%clk
0:00:15.5]} 0-1